[Event "HUN-chT Youth-Children 2018"]
[Site "Zalakaros"]
[Date "2018.07.29"]
[Round "7"]
[White "Pasti, Anna"]
[Black "Szabo, Miklos"]
[Result "1-0"]
[ECO "C70"]
[WhiteElo "1821"]
[BlackElo "1711"]
[Annotator "NA"]
[PlyCount "51"]
[EventDate "2018.07.26"]
[EventType "team-tourn"]
[EventCountry "HUN"]
[SourceTitle "playchess.com"]
[Source "ChessBase"]
[SourceQuality "1"]
[TimeControl "5400+30"]

1. e4 {[%emt 0:01:22]} e5 {[%emt 0:00:03]} 2. Nf3 {[%emt 0:00:03]} Nc6 {[%emt 0:00:06]} 3. Bb5 {[%emt 0:00:04]} a6 {[%emt 0:00:04]} 4. Ba4 {[%emt 0:00:03]} Bd6 {[%emt 0:00:05]} 5. O-O {[%emt 0:01:11]} Nf6 {[%emt 0:00:11]} 6. Re1 {[%emt 0:00:33]} b5 {[%emt 0:00:13]} 7. Bb3 {[%emt 0:00:05]} Bb7 {[%emt 0:02:57]} 8. c3 {[%emt 0:00:28]} O-O {[%emt 0:00:40]} 9. d4 {[%emt 0:00:18]} h6 {[%emt 0:00:14]} 10. Nbd2 {[%emt 0:01:37]} Re8 {[%emt 0:05:53]} 11. d5 {[%emt 0:03:03]} Na5 {[%emt 0:01:48]} 12. Bc2 {[%emt 0:00:08]} Rc8 {[%emt 0:28:15]} 13. b4 {[%emt 0:02:53]} Nc4 {[%emt 0:00:21]} 14. Nxc4 {[%emt 0:00:37]} bxc4 {[%emt 0:00:06]} 15. a4 {[%emt 0:00:21]} Qe7 {[%emt 0:05:21]} 16. Nh4 {[%emt 0:01:57]} Red8 {[%emt 0:08:41]} 17. Nf5 {[%emt 0:00:40]} Qf8 {[%emt 0:00:56]} 18. Re3 {[%emt 0:00:35]} Nh7 {[%emt 0:04:10]} 19. Rg3 {[%emt 0:00:53]} Ng5 {[%emt 0:00:26]} 20. h4 {[%emt 0:00:27]} c6 {[%emt 0:01:34]} 21. hxg5 {[%emt 0:00:11]} cxd5 {[%emt 0:00:27]} 22. gxh6 {[%emt 0:00:16]} g6 {[%emt 0:00:23]} 23. h7+ {[%emt 0:00:13]} Kh8 {[%emt 0:00:55]} 24. Bh6 {[%emt 0:00:08]} Qe8 {[%emt 0:00:06]} 25. Bg7+ {[%emt 0:00:08]} Kxh7 {[%emt 0:00:05]} 26. Rh3+ {[%emt 0:00:02]} 1-0

[Event "HUN-chT Youth-Children 2018"]
[Site "Zalakaros"]
[Date "2018.07.29"]
[Round "7"]
[White "Sulyok, Eszter"]
[Black "Horvath, Balazs"]
[Result "0-1"]
[ECO "E85"]
[WhiteElo "1804"]
[BlackElo "2039"]
[Annotator "NA"]
[PlyCount "106"]
[EventDate "2018.07.26"]
[EventType "team-tourn"]
[EventCountry "HUN"]
[SourceTitle "playchess.com"]
[Source "ChessBase"]
[SourceQuality "1"]
[TimeControl "5400+30"]

1. d4 {[%emt 0:00:00]} Nf6 {[%emt 0:02:15]} 2. c4 {[%emt 0:00:00]} g6 {[%emt 0:00:09]} 3. Nc3 {[%emt 0:00:00]} Bg7 {[%emt 0:00:12]} 4. e4 {[%emt 0:00:00]} d6 {[%emt 0:00:03]} 5. f3 {[%emt 0:00:00]} O-O {[%emt 0:00:11]} 6. Be3 {[%emt 0:00:34]} e5 {[%emt 0:01:15]} 7. Nge2 {[%emt 0:01:48]} Nc6 {[%emt 0:03:16]} 8. d5 {[%emt 0:00:38]} Ne7 {[%emt 0:00:27]} 9. Ng3 {[%emt 0:00:44]} a6 {[%emt 0:05:22]} 10. Be2 {[%emt 0:00:43]} Ne8 {[%emt 0:02:27]} 11. Nf1 {[%emt 0:09:39]} f5 {[%emt 0:07:43]} 12. Nd2 {[%emt 0:00:22]} f4 {[%emt 0:01:04]} 13. Bf2 {[%emt 0:00:12]} g5 {[%emt 0:00:58]} 14. h4 $16 {[%emt 0:11:25]} Ng6 {[%emt 0:09:34]} 15. hxg5 {[%emt 0:10:03]} Qxg5 {[%emt 0:00:39]} 16. Rg1 {[%emt 0:04:06]} Nf6 {[%emt 0:09:51]} 17. Qc2 {[%emt 0:05:15]} Nh5 {[%emt 0:02:58]} 18. O-O-O {[%emt 0:02:06]} Ng3 {[%emt 0:00:21]} 19. Bd3 {[%emt 0:00:45]} h5 {[%emt 0:02:56]} 20. Kb1 {[%emt 0:04:36]} h4 {[%emt 0:01:04]} 21. Nf1 {[%emt 0:02:12]} Rf6 {[%emt 0:17:38]} 22. Rc1 {[%emt 0:03:09]} Nf8 {[%emt 0:01:20]} 23. Be1 {[%emt 0:11:59]} Nxf1 {[%emt 0:07:35]} 24. Rxf1 {[%emt 0:01:01]} Rh6 {[%emt 0:06:22]} 25. Qf2 {[%emt 0:08:58]} Kf7 {[%emt 0:06:33]} 26. Rg1 {[%emt 0:01:59]} Bf6 {[%emt 0:00:36]} 27. Bd2 {[%emt 0:00:35]} Bd7 {[%emt 0:01:39]} 28. Ne2 {[%emt 0:00:32]} Rg6 {[%emt 0:00:31]} 29. Qf1 {[%emt 0:01:55]} Qh5 {[%emt 0:00:56]} 30. Rh1 {[%emt 0:01:16]} Qh8 {[%emt 0:03:10]} 31. Be1 {[%emt 0:03:28]} Rh6 {[%emt 0:00:34]} 32. Ng1 {[%emt 0:00:38]} Ng6 {[%emt 0:00:58]} 33. Nh3 {[%emt 0:00:28]} Ne7 {[%emt 0:00:48]} 34. Bb4 {[%emt 0:01:19]} b6 {[%emt 0:00:31]} 35. Qe2 {[%emt 0:00:52]} Rg6 {[%emt 0:00:30]} 36. Rcg1 {[%emt 0:01:55]} Rag8 {[%emt 0:00:31]} 37. Qc2 {[%emt 0:01:04]} Qg7 {[%emt 0:01:35]} 38. Bf1 {[%emt 0:00:28]} Bxh3 {[%emt 0:01:47]} 39. Rxh3 {[%emt 0:00:10]} Rg3 {[%emt 0:00:44]} 40. Rxg3 {[%emt 0:00:47]} fxg3 {[%emt 0:01:47]} 41. Bd2 {[%emt 0:01:36]} Bg5 {[%emt 0:00:30]} 42. Qc1 {[%emt 0:00:50]} Bxd2 {[%emt 0:00:33]} 43. Qxd2 {[%emt 0:00:05]} Qg5 {[%emt 0:00:34]} 44. Qxg5 {[%emt 0:01:12]} Rxg5 {[%emt 0:00:05]} 45. Kc2 {[%emt 0:00:17]} Ng6 {[%emt 0:00:12]} 46. Kd2 {[%emt 0:01:30]} Nf4 {[%emt 0:00:33]} 47. Ke3 {[%emt 0:01:15]} h3 {[%emt 0:00:39]} 48. Kd2 {[%emt 0:02:01]} h2 {[%emt 0:00:34]} 49. Rh1 {[%emt 0:00:08]} Rg8 {[%emt 0:00:38]} 50. a4 {[%emt 0:02:31]} Kf6 {[%emt 0:01:12]} 51. Ke3 {[%emt 0:01:59]} Kg5 {[%emt 0:00:14]} 52. Kd2 {[%emt 0:00:50]} Kh4 {[%emt 0:00:07]} 53. Ke3 {[%emt 0:00:32]} Nh3 {[%emt 0:00:16] Kd4} 0-1

[Event "HUN-chT Youth-Children 2018"]
[Site "Zalakaros"]
[Date "2018.07.29"]
[Round "7"]
[White "Koltai, Dora"]
[Black "Foldes, Marton Gabor"]
[Result "1/2-1/2"]
[ECO "B22"]
[WhiteElo "1786"]
[BlackElo "1590"]
[Annotator "NA"]
[PlyCount "48"]
[EventDate "2018.07.26"]
[EventType "team-tourn"]
[EventCountry "HUN"]
[SourceTitle "playchess.com"]
[Source "ChessBase"]
[SourceQuality "1"]
[TimeControl "5400+30"]

1. e4 {[%emt 0:00:00]} c5 {[%emt 0:00:10]} 2. c3 {[%emt 0:00:00]} Nf6 {[%emt 0:00:18]} 3. e5 {[%emt 0:00:05]} Nd5 {[%emt 0:00:16]} 4. d4 {[%emt 0:00:24]} cxd4 {[%emt 0:00:26]} 5. Qxd4 {[%emt 0:00:23]} e6 {[%emt 0:00:44]} 6. Bd3 {[%emt 0:00:57]} Nc6 {[%emt 0:00:35]} 7. Qe4 {[%emt 0:00:05]} f6 {[%emt 0:01:17]} 8. exf6 {[%emt 0:05:50]} Nxf6 {[%emt 0:00:36]} 9. Qe2 {[%emt 0:01:59]} Be7 {[%emt 0:02:29]} 10. Nf3 {[%emt 0:01:40]} O-O {[%emt 0:01:30]} 11. O-O {[%emt 0:00:14]} Qc7 {[%emt 0:02:34]} 12. c4 {[%emt 0:05:54]} b6 {[%emt 0:02:10]} 13. h3 {[%emt 0:04:31]} Bb7 {[%emt 0:01:14]} 14. Nc3 {[%emt 0:02:56]} Rac8 {[%emt 0:07:56]} 15. Bg5 {[%emt 0:05:21]} Nb4 {[%emt 0:11:31]} 16. Nb5 {[%emt 0:08:05]} Qb8 {[%emt 0:08:29]} 17. Nfd4 {[%emt 0:16:45]} Bc5 {[%emt 0:02:56]} 18. a3 {[%emt 0:00:21]} Nxd3 19. Qxd3 a6 {[%emt 0:03:46]} 20. Nc3 {[%emt 0:02:59]} Ba8 21. Rad1 {[%emt 0:06:53]} Qb7 {[%emt 0:33:22]} 22. Qg3 {[%emt 0:05:03]} Kh8 {[%emt 0:03:37]} 23. f3 {[%emt 0:07:21]} d6 {[%emt 0:01:56]} 24. Kh1 {[%emt 0:01:42]} Qf7 1/2-1/2

[Event "HUN-chT Youth-Children 2018"]
[Site "Zalakaros"]
[Date "2018.07.29"]
[Round "7"]
[White "Kocsis, Peter"]
[Black "Ocztos, Dominik"]
[Result "0-1"]
[ECO "A05"]
[WhiteElo "1756"]
[BlackElo "1910"]
[Annotator "NA"]
[PlyCount "56"]
[EventDate "2018.07.26"]
[EventType "team-tourn"]
[EventCountry "HUN"]
[SourceTitle "playchess.com"]
[Source "ChessBase"]
[SourceQuality "1"]
[TimeControl "5400+30"]

1. Nf3 {[%emt 0:00:00]} Nf6 {[%emt 0:02:51]} 2. b3 {[%emt 0:00:00]} g6 {[%emt 0:00:07]} 3. Bb2 {[%emt 0:00:00]} Bg7 {[%emt 0:00:06]} 4. d4 {[%emt 0:00:00]} O-O {[%emt 0:00:29]} 5. g3 {[%emt 0:00:15]} d6 {[%emt 0:00:22]} 6. Bg2 {[%emt 0:00:10]} Nbd7 {[%emt 0:00:12]} 7. O-O {[%emt 0:00:13]} Nh5 {[%emt 0:01:55]} 8. c4 {[%emt 0:01:17]} f5 {[%emt 0:00:50]} 9. Nc3 {[%emt 0:01:21]} Ndf6 {[%emt 0:02:54]} 10. Qc2 {[%emt 0:01:07]} f4 {[%emt 0:07:02]} 11. e4 {[%emt 0:04:23]} Ng4 {[%emt 0:13:34]} 12. h3 {[%emt 0:06:48]} Nxf2 {[%emt 0:01:59]} 13. Rxf2 {[%emt 0:02:01]} fxg3 {[%emt 0:01:01]} 14. Rff1 {[%emt 0:04:58]} Nf4 {[%emt 0:00:22]} 15. h4 {[%emt 0:03:16]} Nh3+ {[%emt 0:05:24]} 16. Kh1 {[%emt 0:05:28]} Nf2+ {[%emt 0:02:10]} 17. Rxf2 {[%emt 0:01:22]} gxf2 {[%emt 0:00:21]} 18. Qxf2 {[%emt 0:00:29]} Bg4 {[%emt 0:00:38]} 19. Ne2 {[%emt 0:03:30]} e5 {[%emt 0:00:38]} 20. Qg3 {[%emt 0:01:34]} Bxf3 {[%emt 0:01:46]} 21. Bxf3 {[%emt 0:00:14]} Rxf3 {[%emt 0:07:53]} 22. Qxf3 {[%emt 0:03:12]} Qxh4+ {[%emt 0:00:11]} 23. Kg2 {[%emt 0:04:46]} Rf8 {[%emt 0:00:12]} 24. Qe3 {[%emt 0:03:14]} Bh6 {[%emt 0:00:20]} 25. Rh1 {[%emt 0:05:40]} Qg4+ {[%emt 0:00:45]} 26. Qg3 {[%emt 0:00:16]} Qxe2+ {[%emt 0:00:02]} 27. Kh3 {[%emt 0:00:10]} Rf3 {[%emt 0:00:05]} 28. Rh2 {[%emt 0:00:06]} Rxg3+ {[%emt 0:00:08]} 0-1

[Event "HUN-chT Youth-Children 2018"]
[Site "Zalakaros"]
[Date "2018.07.29"]
[Round "7"]
[White "Baski, Barnabas"]
[Black "Papp, Levente"]
[Result "0-1"]
[ECO "A04"]
[WhiteElo "1740"]
[BlackElo "2311"]
[Annotator "NA"]
[PlyCount "150"]
[EventDate "2018.07.26"]
[EventType "team-tourn"]
[EventCountry "HUN"]
[SourceTitle "playchess.com"]
[Source "ChessBase"]
[SourceQuality "1"]
[TimeControl "5400+30"]

1. Nf3 {[%emt 0:00:00]} b6 {[%emt 0:01:14]} 2. g3 {[%emt 0:00:00]} Bb7 {[%emt 0:00:09]} 3. Bg2 {[%emt 0:00:10]} Nf6 {[%emt 0:00:26]} 4. O-O {[%emt 0:00:43]} e6 {[%emt 0:00:19]} 5. d4 {[%emt 0:00:25]} Be7 {[%emt 0:00:22]} 6. c4 {[%emt 0:00:43]} Ne4 {[%emt 0:01:41]} 7. Nbd2 {[%emt 0:02:41]} Nxd2 {[%emt 0:00:25]} 8. Bxd2 {[%emt 0:01:53]} O-O {[%emt 0:00:07]} 9. Qc2 {[%emt 0:03:45]} f5 {[%emt 0:01:03]} 10. Ne1 {[%emt 0:05:07]} Bxg2 {[%emt 0:01:22]} 11. Nxg2 {[%emt 0:00:12]} Qc8 {[%emt 0:13:28]} 12. Bc3 $14 {[%emt 0:11:55]} Qb7 {[%emt 0:01:44]} 13. Rad1 {[%emt 0:06:15]} Na6 {[%emt 0:14:39]} 14. a3 {[%emt 0:08:51]} Rae8 {[%emt 0:05:56]} 15. f3 {[%emt 0:13:10]} d5 {[%emt 0:01:49]} 16. Qd3 {[%emt 0:12:17]} c6 {[%emt 0:08:50]} 17. e4 Nc7 {[%emt 0:00:27]} 18. Rfe1 {[%emt 0:09:22]} g6 {[%emt 0:05:14]} 19. cxd5 {[%emt 0:03:05]} cxd5 {[%emt 0:00:30]} 20. exd5 {[%emt 0:02:06]} exd5 {[%emt 0:00:32]} 21. Rxe7 {[%emt 0:01:58]} Rxe7 {[%emt 0:00:01]} 22. Bb4 {[%emt 0:00:11]} Rfe8 {[%emt 0:01:04]} 23. Bxe7 {[%emt 0:00:41]} Rxe7 {[%emt 0:00:01]} 24. Re1 {[%emt 0:00:40]} Ne8 {[%emt 0:03:54]} 25. Rxe7 {[%emt 0:02:31]} Qxe7 {[%emt 0:00:01]} 26. Qe3 {[%emt 0:00:34]} Kf7 {[%emt 0:03:49]} 27. Qe5 {[%emt 0:03:16]} Qxe5 {[%emt 0:07:33]} 28. dxe5 {[%emt 0:00:02]} Ke6 {[%emt 0:00:08]} 29. f4 {[%emt 0:00:17]} d4 {[%emt 0:00:02]} 30. Kf2 {[%emt 0:00:52]} Kd5 {[%emt 0:00:04]} 31. Ke2 {[%emt 0:00:56]} Nc7 {[%emt 0:03:12]} 32. Kd3 {[%emt 0:03:42]} a5 {[%emt 0:01:17]} 33. Ne1 {[%emt 0:01:34]} Ne6 {[%emt 0:07:51]} 34. b4 {[%emt 0:00:22]} g5 {[%emt 0:00:35]} 35. Ng2 {[%emt 0:01:57]} h6 {[%emt 0:00:13]} 36. h3 {[%emt 0:02:49]} a4 {[%emt 0:01:13]} 37. h4 {[%emt 0:00:43]} b5 {[%emt 0:06:38]} 38. h5 {[%emt 0:01:08]} g4 {[%emt 0:01:29]} 39. Nh4 {[%emt 0:01:05]} Ng7 {[%emt 0:00:01]} 40. e6 {[%emt 0:01:00]} Kxe6 {[%emt 0:00:02]} 41. Kxd4 {[%emt 0:00:08]} Kd6 {[%emt 0:00:13]} 42. Ke3 {[%emt 0:00:37]} Ke6 {[%emt 0:01:05]} 43. Kd4 {[%emt 0:00:05]} Nxh5 {[%emt 0:00:12]} 44. Kc5 {[%emt 0:00:16]} Nxg3 {[%emt 0:00:05]} 45. Ng2 {[%emt 0:01:03]} Ne4+ {[%emt 0:02:12]} 46. Kxb5 {[%emt 0:00:37]} Nc3+ {[%emt 0:00:01]} 47. Ka5 {[%emt 0:00:41]} Kd6 {[%emt 0:02:05]} 48. b5 {[%emt 0:00:24]} Kc5 {[%emt 0:00:06]} 49. b6 {[%emt 0:00:19]} Kc6 {[%emt 0:00:01]} 50. Ka6 {[%emt 0:00:26]} Ne4 {[%emt 0:00:06]} 51. Ka7 {[%emt 0:01:09]} Nd6 {[%emt 0:00:38]} 52. Ne3 {[%emt 0:00:37]} g3 {[%emt 0:00:29]} 53. Ng2 {[%emt 0:00:29]} Nc8+ {[%emt 0:00:06]} 54. Ka6 {[%emt 0:00:17]} Nxb6 {[%emt 0:00:05]} 55. Ka5 {[%emt 0:00:14]} Kc5 {[%emt 0:00:08]} 56. Nh4 {[%emt 0:01:14]} Nc4+ {[%emt 0:00:09]} 57. Kxa4 {[%emt 0:00:00]} Ne3 {[%emt 0:00:02]} 58. Kb3 {[%emt 0:00:31]} g2 {[%emt 0:00:15]} 59. Nf3 {[%emt 0:00:03]} Nc4 {[%emt 0:00:19]} 60. Kc3 {[%emt 0:00:31]} Nxa3 {[%emt 0:00:34]} 61. Kd3 {[%emt 0:00:18]} Kd5 {[%emt 0:00:33]} 62. Ke3 {[%emt 0:01:03]} Nc2+ {[%emt 0:00:43]} 63. Kf2 {[%emt 0:00:10]} Ke4 {[%emt 0:00:05]} 64. Kxg2 {[%emt 0:00:16]} Nd4 {[%emt 0:00:42]} 65. Ne5 {[%emt 0:00:58]} Kxf4 {[%emt 0:00:11]} 66. Nd3+ {[%emt 0:00:22]} Ke3 {[%emt 0:00:09]} 67. Ne5 {[%emt 0:00:13]} f4 {[%emt 0:00:25]} 68. Ng4+ {[%emt 0:00:38]} Ke2 {[%emt 0:00:01]} 69. Nf2 {[%emt 0:00:58]} h5 {[%emt 0:00:25]} 70. Nh3 {[%emt 0:00:24]} f3+ {[%emt 0:00:12]} 71. Kg3 {[%emt 0:00:45]} Nf5+ {[%emt 0:00:46]} 72. Kf4 {[%emt 0:00:29]} f2 {[%emt 0:00:02]} 73. Nxf2 {[%emt 0:00:13]} Kxf2 {[%emt 0:00:01]} 74. Kg5 {[%emt 0:00:54]} h4 {[%emt 0:00:02]} 75. Kg4 {[%emt 0:00:14]} Kg2 {[%emt 0:00:01]} 0-1

[Event "HUN-chT Youth-Children 2018"]
[Site "Zalakaros"]
[Date "2018.07.29"]
[Round "7"]
[White "Megyaszai, Balazs"]
[Black "Andras, Ferenc"]
[Result "1/2-1/2"]
[ECO "B01"]
[WhiteElo "1710"]
[BlackElo "1202"]
[Annotator "NA"]
[PlyCount "73"]
[EventDate "2018.07.26"]
[EventType "team-tourn"]
[EventCountry "HUN"]
[SourceTitle "playchess.com"]
[Source "ChessBase"]
[SourceQuality "1"]
[TimeControl "5400+30"]

1. e4 {[%emt 0:00:00]} d5 {[%emt 0:00:20]} 2. exd5 {[%emt 0:01:07]} Qxd5 {[%emt 0:00:22]} 3. Nc3 {[%emt 0:01:15]} Qa5 {[%emt 0:00:59]} 4. Nf3 {[%emt 0:01:08]} Nf6 {[%emt 0:00:48]} 5. d3 {[%emt 0:00:58]} c6 {[%emt 0:00:42]} 6. Be2 {[%emt 0:00:49]} Bf5 {[%emt 0:00:45]} 7. Bd2 {[%emt 0:00:58]} e6 {[%emt 0:00:44]} 8. O-O {[%emt 0:01:13]} Nbd7 {[%emt 0:00:56]} 9. a3 {[%emt 0:01:09]} Be7 {[%emt 0:00:30]} 10. Re1 {[%emt 0:01:56]} O-O {[%emt 0:00:58]} 11. Nh4 {[%emt 0:01:46]} Bg6 {[%emt 0:01:59]} 12. Nxg6 {[%emt 0:02:15]} hxg6 {[%emt 0:00:35]} 13. Rb1 {[%emt 0:07:55]} Rfe8 {[%emt 0:03:50]} 14. d4 {[%emt 0:03:00]} Nh7 {[%emt 0:03:46]} 15. Bf3 {[%emt 0:05:07]} Qb6 {[%emt 0:09:20]} 16. Be3 {[%emt 0:01:14]} Qa5 {[%emt 0:00:54]} 17. Qe2 {[%emt 0:05:24]} Bg5 {[%emt 0:05:06]} 18. b4 {[%emt 0:02:24]} Qd8 {[%emt 0:01:45]} 19. b5 {[%emt 0:02:57]} Rc8 {[%emt 0:02:40]} 20. bxc6 {[%emt 0:03:48]} bxc6 {[%emt 0:00:11]} 21. Ne4 {[%emt 0:00:36]} Bxe3 {[%emt 0:00:56]} 22. fxe3 {[%emt 0:01:49]} Ndf6 {[%emt 0:00:55]} 23. Nc5 {[%emt 0:01:30]} Nd5 {[%emt 0:01:42]} 24. Bxd5 {[%emt 0:03:07]} cxd5 {[%emt 0:00:29]} 25. Rb7 {[%emt 0:01:41]} Rc7 {[%emt 0:02:02]} 26. Reb1 {[%emt 0:02:04]} Rxb7 {[%emt 0:02:04]} 27. Rxb7 {[%emt 0:00:53]} Qa5 {[%emt 0:00:51]} 28. Qf2 {[%emt 0:01:29]} Nf6 {[%emt 0:02:14]} 29. Rb3 {[%emt 0:02:57]} Ne4 {[%emt 0:01:32]} 30. Nxe4 {[%emt 0:04:45]} dxe4 {[%emt 0:00:21]} 31. c4 {[%emt 0:00:34]} Qa4 {[%emt 0:01:31]} 32. Qc2 {[%emt 0:00:18]} Kh7 {[%emt 0:01:23]} 33. Qc3 {[%emt 0:00:12]} f5 {[%emt 0:01:49]} 34. c5 {[%emt 0:01:11]} Qc6 {[%emt 0:01:08]} 35. Qb4 {[%emt 0:02:16]} Re7 {[%emt 0:00:55]} 36. h3 {[%emt 0:04:23]} g5 {[%emt 0:01:35]} 37. Qe1 1/2-1/2

[Event "HUN-chT Youth-Children 2018"]
[Site "Zalakaros"]
[Date "2018.07.29"]
[Round "7"]
[White "Kiss, Eniko"]
[Black "Monduk, Ferenc"]
[Result "1/2-1/2"]
[ECO "C01"]
[WhiteElo "1697"]
[BlackElo "1870"]
[Annotator "NA"]
[PlyCount "71"]
[EventDate "2018.07.26"]
[EventType "team-tourn"]
[EventCountry "HUN"]
[SourceTitle "playchess.com"]
[Source "ChessBase"]
[SourceQuality "1"]
[TimeControl "5400+30"]

1. e4 {[%emt 0:00:00]} e6 {[%emt 0:00:04]} 2. d4 {[%emt 0:00:00]} d5 {[%emt 0:00:05]} 3. exd5 {[%emt 0:00:00]} exd5 {[%emt 0:00:02]} 4. c4 {[%emt 0:00:00]} Nf6 {[%emt 0:00:44]} 5. Nc3 {[%emt 0:00:15]} Bb4 {[%emt 0:00:49]} 6. Nf3 {[%emt 0:02:20]} O-O {[%emt 0:02:03]} 7. Bd3 {[%emt 0:07:08]} dxc4 {[%emt 0:01:19]} 8. Bxc4 {[%emt 0:00:17]} Bg4 {[%emt 0:06:48]} 9. O-O {[%emt 0:21:48]} Nc6 {[%emt 0:13:31]} 10. a3 {[%emt 0:26:01]} Ba5 {[%emt 0:05:29]} 11. b4 {[%emt 0:02:06]} Bb6 {[%emt 0:00:21]} 12. d5 {[%emt 0:03:09]} Nd4 {[%emt 0:06:26]} 13. Be3 {[%emt 0:02:14]} Nxf3+ {[%emt 0:00:46]} 14. gxf3 {[%emt 0:00:08]} Bh3 {[%emt 0:01:22]} 15. Re1 {[%emt 0:00:37]} Nh5 {[%emt 0:13:59]} 16. Bf1 {[%emt 0:04:47]} Bxe3 {[%emt 0:05:27]} 17. fxe3 {[%emt 0:01:34]} Qg5+ {[%emt 0:00:29]} 18. Kh1 {[%emt 0:01:29]} Bxf1 {[%emt 0:00:16]} 19. Rxf1 {[%emt 0:00:28]} Qxe3 {[%emt 0:00:50]} 20. Nb5 {[%emt 0:05:02]} Rad8 {[%emt 0:07:02]} 21. Nxc7 {[%emt 0:02:28]} Qe5 {[%emt 0:01:22]} 22. Rc1 {[%emt 0:02:06]} Rd7 {[%emt 0:00:34]} 23. Re1 {[%emt 0:04:56]} Qd6 {[%emt 0:07:45]} 24. Nb5 {[%emt 0:03:09]} Qb6 {[%emt 0:11:56]} 25. Nc3 Nf4 {[%emt 0:01:15]} 26. Qd2 {[%emt 0:08:07]} Ng6 {[%emt 0:03:23]} 27. Na4 {[%emt 0:01:27]} Qf6 {[%emt 0:00:28]} 28. Re3 {[%emt 0:01:08]} h6 {[%emt 0:01:49]} 29. Nc5 {[%emt 0:00:45]} Rdd8 {[%emt 0:02:51]} 30. Nxb7 {[%emt 0:00:21]} Rb8 {[%emt 0:00:30]} 31. Nc5 {[%emt 0:00:31]} Rfd8 {[%emt 0:00:01]} 32. Rd1 {[%emt 0:00:22]} Qf4 {[%emt 0:01:17]} 33. Rd3 {[%emt 0:00:38]} Qf5 {[%emt 0:00:24]} 34. d6 {[%emt 0:00:27]} Ne5 {[%emt 0:00:16]} 35. Rd5 {[%emt 0:00:24]} Qxf3+ {[%emt 0:00:21]} 36. Qg2 {[%emt 0:00:34]} 1/2-1/2

[Event "HUN-chT Youth-Children 2018"]
[Site "Zalakaros"]
[Date "2018.07.29"]
[Round "7"]
[White "Laszlo, Csaba"]
[Black "Fodor, Kornel"]
[Result "1/2-1/2"]
[ECO "B44"]
[WhiteElo "1694"]
[BlackElo "1794"]
[Annotator "NA"]
[PlyCount "104"]
[EventDate "2018.07.26"]
[EventType "team-tourn"]
[EventCountry "HUN"]
[SourceTitle "playchess.com"]
[Source "ChessBase"]
[SourceQuality "1"]
[TimeControl "5400+30"]

1. e4 {[%emt 0:00:00]} c5 {[%emt 0:00:04]} 2. Nf3 {[%emt 0:00:00]} e6 {[%emt 0:00:04]} 3. d4 {[%emt 0:00:00]} cxd4 {[%emt 0:00:03]} 4. Nxd4 {[%emt 0:00:00]} Nc6 {[%emt 0:00:04]} 5. Be3 {[%emt 0:00:10]} Nf6 {[%emt 0:00:07]} 6. Bd3 {[%emt 0:00:21]} d5 {[%emt 0:00:17]} 7. Nc3 {[%emt 0:04:44]} Bb4 {[%emt 0:08:14]} 8. Nxc6 {[%emt 0:02:07]} bxc6 {[%emt 0:01:02]} 9. e5 {[%emt 0:00:28]} d4 $15 {[%emt 0:09:35]} 10. Bd2 {[%emt 0:08:09]} Nd7 {[%emt 0:14:45]} 11. Ne2 {[%emt 0:08:38]} Bxd2+ {[%emt 0:00:50]} 12. Qxd2 {[%emt 0:00:10]} Nxe5 {[%emt 0:03:49]} 13. O-O O-O 14. h3 {[%emt 0:08:27]} c5 {[%emt 0:09:21]} 15. f4 {[%emt 0:01:40]} Nxd3 {[%emt 0:01:01]} 16. Qxd3 {[%emt 0:13:51]} Bb7 17. Rf2 Qb6 {[%emt 0:12:40]} 18. b3 {[%emt 0:03:31]} Rfd8 {[%emt 0:02:23]} 19. Re1 {[%emt 0:05:56]} Ba6 {[%emt 0:05:31]} 20. Qd2 {[%emt 0:03:49]} d3 {[%emt 0:10:21]} 21. Ng3 {[%emt 0:02:10]} c4 {[%emt 0:01:57]} 22. Ne4 {[%emt 0:04:17]} Rac8 {[%emt 0:03:47]} 23. bxc4 {[%emt 0:03:25]} Bxc4 {[%emt 0:03:06]} 24. Qe3 {[%emt 0:07:56]} Qa5 {[%emt 0:05:55]} 25. f5 {[%emt 0:04:23]} dxc2 26. Rxc2 {[%emt 0:03:16]} Qxf5 {[%emt 0:04:14]} 27. Qxa7 {[%emt 0:02:41]} Ra8 {[%emt 0:01:08]} 28. Qc7 {[%emt 0:01:42]} Bd3 {[%emt 0:02:06]} 29. Rf2 {[%emt 0:00:55]} Qg6 {[%emt 0:00:45]} 30. Nd6 {[%emt 0:02:18]} f5 {[%emt 0:00:53]} 31. Rf3 {[%emt 0:01:42]} Be4 {[%emt 0:00:49]} 32. Nxe4 {[%emt 0:01:28]} fxe4 {[%emt 0:00:01]} 33. Rg3 {[%emt 0:00:14]} Qf7 {[%emt 0:01:06]} 34. Qxf7+ {[%emt 0:00:53]} Kxf7 35. Rxe4 {[%emt 0:00:15]} Rxa2 {[%emt 0:00:18]} 36. Rf3+ {[%emt 0:00:45]} Ke7 {[%emt 0:00:20]} 37. Rg4 {[%emt 0:01:01]} g6 {[%emt 0:00:27]} 38. Rb4 {[%emt 0:01:18]} Rd7 {[%emt 0:01:22]} 39. Rbf4 {[%emt 0:03:32]} Kd8 {[%emt 0:00:57]} 40. Rf7 {[%emt 0:02:16]} Raa7 {[%emt 0:00:12]} 41. R7f6 {[%emt 0:00:31]} Ke7 {[%emt 0:00:43]} 42. Rf7+ {[%emt 0:00:10]} Kd6 {[%emt 0:00:40]} 43. Rd3+ {[%emt 0:00:08]} Kc6 {[%emt 0:00:05]} 44. Rc3+ {[%emt 0:00:12]} Kb5 {[%emt 0:00:19]} 45. Rf1 {[%emt 0:00:26]} Ra4 {[%emt 0:00:45]} 46. Re1 {[%emt 0:00:17]} Re7 {[%emt 0:00:17]} 47. Rce3 {[%emt 0:00:08]} Ra6 {[%emt 0:00:14]} 48. Rc3 {[%emt 0:00:05]} Kb4 {[%emt 0:00:43]} 49. Rc8 {[%emt 0:00:12]} Kb3 {[%emt 0:00:47]} 50. Re3+ {[%emt 0:00:37]} Kb4 {[%emt 0:00:30]} 51. Re1 {[%emt 0:00:04]} Kb3 {[%emt 0:00:08]} 52. Re3+ {[%emt 0:00:05]} Kb4 {[%emt 0:00:08]} 1/2-1/2

[Event "HUN-chT Youth-Children 2018"]
[Site "Zalakaros"]
[Date "2018.07.29"]
[Round "7"]
[White "Kiraly, Lilla Virag"]
[Black "Gulacsi, Donat Ferenc"]
[Result "1/2-1/2"]
[ECO "D02"]
[WhiteElo "1488"]
[BlackElo "1610"]
[Annotator "NA"]
[PlyCount "40"]
[EventDate "2018.07.26"]
[EventType "team-tourn"]
[EventCountry "HUN"]
[SourceTitle "playchess.com"]
[Source "ChessBase"]
[SourceQuality "1"]
[TimeControl "5400+30"]

1. d4 {[%emt 0:00:00]} d5 {[%emt 0:00:08]} 2. Nf3 {[%emt 0:00:00]} c5 {[%emt 0:01:03]} 3. c3 {[%emt 0:00:55]} e6 {[%emt 0:00:26]} 4. Bf4 {[%emt 0:00:21]} Nc6 {[%emt 0:00:56]} 5. e3 {[%emt 0:00:41]} Nf6 {[%emt 0:00:45]} 6. Nbd2 {[%emt 0:00:52]} Be7 {[%emt 0:01:31]} 7. Bd3 {[%emt 0:01:08]} O-O {[%emt 0:01:30]} 8. O-O {[%emt 0:00:41]} b6 {[%emt 0:08:54]} 9. Bg3 {[%emt 0:02:57]} Bb7 {[%emt 0:01:38]} 10. Ne5 {[%emt 0:01:27]} cxd4 {[%emt 0:08:51]} 11. exd4 {[%emt 0:01:01]} Nd7 {[%emt 0:07:40]} 12. Qh5 {[%emt 0:07:42]} f5 {[%emt 0:07:21]} 13. f4 {[%emt 0:04:14]} Nf6 {[%emt 0:01:55]} 14. Qe2 {[%emt 0:01:01]} Ne4 {[%emt 0:01:31]} 15. Ndf3 {[%emt 0:07:24]} Rf6 {[%emt 0:09:27]} 16. Bb5 {[%emt 0:12:27]} Rc8 {[%emt 0:02:17]} 17. Bh4 {[%emt 0:02:33]} Rf8 {[%emt 0:01:17]} 18. Bxe7 {[%emt 0:00:32]} Qxe7 {[%emt 0:00:23]} 19. Rae1 {[%emt 0:08:56]} Qd6 {[%emt 0:06:26]} 20. Nxc6 {[%emt 0:06:38]} Bxc6 1/2-1/2